[Event "Titled Tuesday Blitz August 08 Early 2023"]
[White "Bettalli, Francesco"]
[Black "Bauman_Guy"]
[WhiteFideId "2816453"]
[WhiteElo "2551"]
[BlackElo "2810"]
[Result "0-1"]
[Round "3"]
[TimeControl "180+1"]
[Date "2023.08.08"]
[WhiteClock "0:01:07"]
[BlackClock "0:00:53"]
[Board "49"]

1. e4 {[%clk 0:03:00]}  c6 {[%clk 0:03:00]} 2. d4 {[%clk 0:03:00]}  d5 {[%clk 0:03:00]} 3. e5 {[%clk 0:03:00]}  Bf5 {[%clk 0:03:00]} 4. Nc3 {[%clk 0:02:59]}  e6 {[%clk 0:03:00]} 5. g4 {[%clk 0:03:00]}  Bg6 {[%clk 0:03:01]} 6. Nge2 {[%clk 0:02:59]}  h5 {[%clk 0:03:01]} 7. Nf4 {[%clk 0:02:59]}  Bh7 {[%clk 0:03:01]} 8. gxh5 {[%clk 0:02:58]}  c5 {[%clk 0:03:01]} 9. Be3 {[%clk 0:02:57]}  Nc6 {[%clk 0:03:00]} 10. Bb5 {[%clk 0:02:54]}  Ne7 {[%clk 0:03:00]} 11. dxc5 {[%clk 0:02:54]}  Nf5 {[%clk 0:02:58]} 12. Qg4 {[%clk 0:02:51]}  Nxe3 {[%clk 0:02:30]} 13. fxe3 {[%clk 0:02:50]}  Bf5 {[%clk 0:02:28]} 14. Qf3 {[%clk 0:02:47]}  Bxc2 {[%clk 0:02:26]} 15. O-O {[%clk 0:02:43]}  Qg5+ {[%clk 0:02:13]} 16. Kh1 {[%clk 0:02:43]}  O-O-O {[%clk 0:01:55]} 17. Rac1 {[%clk 0:02:33]}  Nxe5 {[%clk 0:01:50]} 18. Qe2 {[%clk 0:02:20]}  Bf5 {[%clk 0:01:49]} 19. c6 {[%clk 0:02:17]}  bxc6 {[%clk 0:01:46]} 20. Bxc6 {[%clk 0:02:14]}  Nxc6 {[%clk 0:01:29]} 21. Qa6+ {[%clk 0:02:13]}  Kd7 {[%clk 0:01:16]} 22. Qb7+ {[%clk 0:02:13]}  Kd6 {[%clk 0:01:05]} 23. Rg1 {[%clk 0:01:57]}  Qe7 {[%clk 0:00:55]} 24. e4 {[%clk 0:01:07]}  Qxb7 {[%clk 0:00:53]} 0-1


[Site "https://www.chess.com"]

[Event "Titled Tuesday Blitz August 08 Early 2023"]
[White "Mikhailovsky, Vladimir"]
[Black "Deng, Henry"]
[WhiteFideId "34105414"]
[BlackFideId "30965454"]
[WhiteElo "2809"]
[BlackElo "2550"]
[Result "1-0"]
[Round "3"]
[TimeControl "180+1"]
[Date "2023.08.08"]
[WhiteClock "0:00:50"]
[BlackClock "0:01:21"]
[Board "50"]

1. e4 {[%clk 0:03:00]}  e5 {[%clk 0:02:58]} 2. Nf3 {[%clk 0:03:01]}  Nc6 {[%clk 0:02:59]} 3. Nc3 {[%clk 0:03:01]}  Nf6 {[%clk 0:02:58]} 4. d4 {[%clk 0:03:02]}  exd4 {[%clk 0:02:56]} 5. Nxd4 {[%clk 0:03:03]}  Nxe4 {[%clk 0:02:56]} 6. Nxe4 {[%clk 0:03:02]}  Qe7 {[%clk 0:02:57]} 7. f3 {[%clk 0:03:03]}  d5 {[%clk 0:02:57]} 8. Bb5 {[%clk 0:03:03]}  Bd7 {[%clk 0:02:58]} 9. Bxc6 {[%clk 0:03:04]}  bxc6 {[%clk 0:02:58]} 10. O-O {[%clk 0:03:04]}  dxe4 {[%clk 0:02:59]} 11. fxe4 {[%clk 0:03:05]}  Qd6 {[%clk 0:02:57]} 12. e5 {[%clk 0:02:58]}  Qd5 {[%clk 0:02:56]} 13. Be3 {[%clk 0:02:30]}  c5 {[%clk 0:02:51]} 14. Nf5 {[%clk 0:02:19]}  Qxd1 {[%clk 0:02:37]} 15. Raxd1 {[%clk 0:02:19]}  g6 {[%clk 0:02:38]} 16. Nh6 {[%clk 0:02:02]}  Be6 {[%clk 0:02:36]} 17. Bg5 {[%clk 0:01:53]}  Bg7 {[%clk 0:02:20]} 18. Bf6 {[%clk 0:01:41]}  Kf8 {[%clk 0:02:04]} 19. Bxg7+ {[%clk 0:01:15]}  Kxg7 {[%clk 0:02:04]} 20. Nxf7 {[%clk 0:01:16]}  Rhe8 {[%clk 0:01:34]} 21. Ng5 {[%clk 0:01:14]}  Bf5 {[%clk 0:01:33]} 22. Rd5 {[%clk 0:01:11]}  Rad8 {[%clk 0:01:27]} 23. Rxc5 {[%clk 0:01:11]}  Re7 {[%clk 0:01:26]} 24. h3 {[%clk 0:01:02]}  Rd2 {[%clk 0:01:26]} 25. g4 {[%clk 0:00:55]}  Rxc2 {[%clk 0:01:21]} 26. gxf5 {[%clk 0:00:50]} 1-0


[Site "https://www.chess.com"]

[Event "Titled Tuesday Blitz August 08 Early 2023"]
[White "LangesNasenhaar"]
[Black "Sethuraman, S.P."]
[BlackFideId "5021596"]
[WhiteElo "2545"]
[BlackElo "2805"]
[Result "1-0"]
[Round "3"]
[TimeControl "180+1"]
[Date "2023.08.08"]
[WhiteClock "0:00:04"]
[BlackClock "0:00:01"]
[Board "52"]

1. d4 {[%clk 0:03:00]}  Nf6 {[%clk 0:02:59]} 2. Nc3 {[%clk 0:03:01]}  d5 {[%clk 0:02:58]} 3. Bf4 {[%clk 0:03:01]}  e6 {[%clk 0:02:55]} 4. Nb5 {[%clk 0:03:00]}  Bb4+ {[%clk 0:02:55]} 5. c3 {[%clk 0:02:59]}  Ba5 {[%clk 0:02:55]} 6. a4 {[%clk 0:02:59]}  a6 {[%clk 0:02:46]} 7. b4 {[%clk 0:02:59]}  Bxb4 {[%clk 0:02:22]} 8. cxb4 {[%clk 0:02:31]}  axb5 {[%clk 0:02:21]} 9. axb5 {[%clk 0:02:23]}  Rxa1 {[%clk 0:02:21]} 10. Qxa1 {[%clk 0:02:23]}  O-O {[%clk 0:02:21]} 11. e3 {[%clk 0:02:16]}  Qe7 {[%clk 0:02:17]} 12. Qc3 {[%clk 0:02:14]}  Ne4 {[%clk 0:02:16]} 13. Qb2 {[%clk 0:02:08]}  Nd6 {[%clk 0:01:55]} 14. Bd3 {[%clk 0:02:01]}  Bd7 {[%clk 0:01:53]} 15. Qc2 {[%clk 0:01:47]}  Nxb5 {[%clk 0:01:43]} 16. Bxh7+ {[%clk 0:01:37]}  Kh8 {[%clk 0:01:43]} 17. Bd3 {[%clk 0:01:38]}  Qxb4+ {[%clk 0:01:41]} 18. Kf1 {[%clk 0:01:39]}  Qc3 {[%clk 0:01:14]} 19. Qd1 {[%clk 0:01:30]}  Kg8 {[%clk 0:01:09]} 20. Ne2 {[%clk 0:01:09]}  Qa3 {[%clk 0:01:09]} 21. g4 {[%clk 0:00:58]}  Na6 {[%clk 0:01:08]} 22. Kg2 {[%clk 0:00:51]}  c5 {[%clk 0:01:04]} 23. h4 {[%clk 0:00:31]}  c4 {[%clk 0:00:57]} 24. Bb1 {[%clk 0:00:31]}  Nb4 {[%clk 0:00:53]} 25. h5 {[%clk 0:00:29]}  Nd3 {[%clk 0:00:32]} 26. h6 {[%clk 0:00:26]}  g6 {[%clk 0:00:27]} 27. h7+ {[%clk 0:00:23]}  Kh8 {[%clk 0:00:27]} 28. Bh6 {[%clk 0:00:20]}  Re8 {[%clk 0:00:18]} 29. Nf4 {[%clk 0:00:21]}  Nc3 {[%clk 0:00:13]} 30. Qf3 {[%clk 0:00:16]}  Qe7 {[%clk 0:00:12]} 31. Bc2 {[%clk 0:00:11]}  Ne4 {[%clk 0:00:11]} 32. Nxd3 {[%clk 0:00:09]}  cxd3 {[%clk 0:00:11]} 33. Bxd3 {[%clk 0:00:10]}  f5 {[%clk 0:00:11]} 34. Qf4 {[%clk 0:00:09]}  Qf6 {[%clk 0:00:10]} 35. g5 {[%clk 0:00:07]}  Qe7 {[%clk 0:00:06]} 36. Qe5+ {[%clk 0:00:07]}  Kxh7 {[%clk 0:00:06]} 37. Bf8+ {[%clk 0:00:06]}  Kg8 {[%clk 0:00:01]} 38. Rh8+ {[%clk 0:00:04]} 1-0


[Site "https://www.chess.com"]

[Event "Titled Tuesday Blitz August 08 Early 2023"]
[White "Fantastic_Power"]
[Black "Ismagilov, Damir"]
[BlackFideId "34199982"]
[WhiteElo "2792"]
[BlackElo "2544"]
[Result "1-0"]
[Round "3"]
[TimeControl "180+1"]
[Date "2023.08.08"]
[WhiteClock "0:00:03"]
[BlackClock "0:00:01"]
[Board "53"]

1. e4 {[%clk 0:02:58]}  e5 {[%clk 0:03:00]} 2. Nf3 {[%clk 0:02:58]}  Nc6 {[%clk 0:03:00]} 3. Bc4 {[%clk 0:02:58]}  Bc5 {[%clk 0:03:00]} 4. O-O {[%clk 0:02:57]}  Nf6 {[%clk 0:02:59]} 5. d4 {[%clk 0:02:58]}  Bxd4 {[%clk 0:02:59]} 6. Nxd4 {[%clk 0:02:58]}  Nxd4 {[%clk 0:03:00]} 7. f4 {[%clk 0:02:58]}  Nc6 {[%clk 0:02:22]} 8. Bxf7+ {[%clk 0:02:55]}  Kxf7 {[%clk 0:02:19]} 9. fxe5 {[%clk 0:02:56]}  Nxe5 {[%clk 0:02:06]} 10. Qd5+ {[%clk 0:02:55]}  Ke8 {[%clk 0:02:03]} 11. Qxe5+ {[%clk 0:02:55]}  Qe7 {[%clk 0:02:02]} 12. Qxc7 {[%clk 0:02:54]}  d6 {[%clk 0:02:00]} 13. Qxe7+ {[%clk 0:02:49]}  Kxe7 {[%clk 0:02:01]} 14. Nc3 {[%clk 0:02:48]}  h6 {[%clk 0:01:59]} 15. Bf4 {[%clk 0:02:46]}  Be6 {[%clk 0:01:59]} 16. Rad1 {[%clk 0:02:39]}  Rad8 {[%clk 0:01:51]} 17. Rfe1 {[%clk 0:02:34]}  a6 {[%clk 0:01:44]} 18. Nd5+ {[%clk 0:02:16]}  Bxd5 {[%clk 0:01:35]} 19. exd5+ {[%clk 0:02:17]}  Kf7 {[%clk 0:01:36]} 20. c4 {[%clk 0:02:11]}  b5 {[%clk 0:01:30]} 21. b3 {[%clk 0:02:09]}  bxc4 {[%clk 0:01:21]} 22. bxc4 {[%clk 0:02:10]}  Rc8 {[%clk 0:01:16]} 23. Rd4 {[%clk 0:01:32]}  Rhd8 {[%clk 0:01:05]} 24. Re6 {[%clk 0:01:28]}  Ne8 {[%clk 0:00:54]} 25. h3 {[%clk 0:01:13]}  Rc5 {[%clk 0:00:54]} 26. Be3 {[%clk 0:01:05]}  Rcc8 {[%clk 0:00:34]} 27. Rf4+ {[%clk 0:00:59]}  Kg8 {[%clk 0:00:24]} 28. Re7 {[%clk 0:00:58]}  Rc7 {[%clk 0:00:21]} 29. Rxc7 {[%clk 0:00:53]}  Nxc7 {[%clk 0:00:22]} 30. Bb6 {[%clk 0:00:53]}  Rc8 {[%clk 0:00:21]} 31. Bxc7 {[%clk 0:00:38]}  Rxc7 {[%clk 0:00:21]} 32. Re4 {[%clk 0:00:37]}  Rc5 {[%clk 0:00:21]} 33. Kh2 {[%clk 0:00:35]}  Kf7 {[%clk 0:00:20]} 34. Kg3 {[%clk 0:00:29]}  Ra5 {[%clk 0:00:20]} 35. Re6 {[%clk 0:00:29]}  Rxa2 {[%clk 0:00:16]} 36. Rxd6 {[%clk 0:00:29]}  Rc2 {[%clk 0:00:16]} 37. Rc6 {[%clk 0:00:28]}  a5 {[%clk 0:00:15]} 38. Kf4 {[%clk 0:00:23]}  a4 {[%clk 0:00:15]} 39. Ke4 {[%clk 0:00:22]}  a3 {[%clk 0:00:14]} 40. Kd3 {[%clk 0:00:23]}  Rxg2 {[%clk 0:00:12]} 41. c5 {[%clk 0:00:19]}  a2 {[%clk 0:00:12]} 42. Ra6 {[%clk 0:00:19]}  Ke7 {[%clk 0:00:11]} 43. Kd4 {[%clk 0:00:16]}  Rd2+ {[%clk 0:00:08]} 44. Kc4 {[%clk 0:00:14]}  Rb2 {[%clk 0:00:08]} 45. Ra7+ {[%clk 0:00:13]}  Kd8 {[%clk 0:00:05]} 46. d6 {[%clk 0:00:13]}  Rd2 {[%clk 0:00:02]} 47. Kb5 {[%clk 0:00:12]}  Rb2+ {[%clk 0:00:02]} 48. Kc6 {[%clk 0:00:12]}  Ke8 {[%clk 0:00:02]} 49. Kd5 {[%clk 0:00:05]}  Rd2+ {[%clk 0:00:01]} 50. Ke5 {[%clk 0:00:05]}  Re2+ {[%clk 0:00:01]} 51. Kd4 {[%clk 0:00:05]}  Rd2+ {[%clk 0:00:01]} 52. Kc3 {[%clk 0:00:05]}  Rg2 {[%clk 0:00:01]} 53. c6 {[%clk 0:00:05]}  Rg6 {[%clk 0:00:01]} 54. Ra8+ {[%clk 0:00:02]}  Kf7 {[%clk 0:00:01]} 55. c7 {[%clk 0:00:02]}  Rxd6 {[%clk 0:00:01]} 56. c8=Q {[%clk 0:00:03]}  Rc6+ {[%clk 0:00:02]} 57. Qxc6 {[%clk 0:00:03]}  a1=Q+ {[%clk 0:00:02]} 58. Rxa1 {[%clk 0:00:03]}  h5 {[%clk 0:00:03]} 59. Qd5+ {[%clk 0:00:03]}  Kf6 {[%clk 0:00:01]} 60. Ra6+ {[%clk 0:00:03]} 1-0


[Site "https://www.chess.com"]

[Event "Titled Tuesday Blitz August 08 Early 2023"]
[White "Le, Tuan Minh"]
[Black "Di Nicolantonio, Lucas"]
[WhiteFideId "12401153"]
[BlackFideId "680460"]
[WhiteElo "2961"]
[BlackElo "2542"]
[Result "1-0"]
[Round "3"]
[TimeControl "180+1"]
[Date "2023.08.08"]
[WhiteClock "0:01:48"]
[BlackClock "0:00:15"]
[Board "55"]

1. d4 {[%clk 0:03:00]}  d5 {[%clk 0:02:58]} 2. Nf3 {[%clk 0:03:00]}  Nf6 {[%clk 0:02:58]} 3. Bf4 {[%clk 0:02:58]}  e6 {[%clk 0:02:59]} 4. e3 {[%clk 0:02:58]}  Bd6 {[%clk 0:02:59]} 5. Nbd2 {[%clk 0:02:57]}  O-O {[%clk 0:02:59]} 6. c3 {[%clk 0:02:58]}  b6 {[%clk 0:02:59]} 7. Bd3 {[%clk 0:02:58]}  Ba6 {[%clk 0:02:57]} 8. Bxa6 {[%clk 0:02:59]}  Nxa6 {[%clk 0:02:58]} 9. Bg5 {[%clk 0:02:59]}  Be7 {[%clk 0:02:42]} 10. Ne5 {[%clk 0:02:58]}  Nb8 {[%clk 0:02:41]} 11. O-O {[%clk 0:02:57]}  Nfd7 {[%clk 0:02:41]} 12. Bxe7 {[%clk 0:02:57]}  Qxe7 {[%clk 0:02:42]} 13. f4 {[%clk 0:02:58]}  Nxe5 {[%clk 0:02:39]} 14. fxe5 {[%clk 0:02:58]}  Nd7 {[%clk 0:02:40]} 15. Qg4 {[%clk 0:02:53]}  f5 {[%clk 0:02:38]} 16. Qg3 {[%clk 0:02:47]}  c5 {[%clk 0:02:28]} 17. Nf3 {[%clk 0:02:45]}  c4 {[%clk 0:02:24]} 18. Ng5 {[%clk 0:02:36]}  b5 {[%clk 0:02:14]} 19. a3 {[%clk 0:02:32]}  a5 {[%clk 0:02:14]} 20. h4 {[%clk 0:02:30]}  b4 {[%clk 0:02:05]} 21. axb4 {[%clk 0:02:23]}  axb4 {[%clk 0:02:06]} 22. h5 {[%clk 0:02:22]}  h6 {[%clk 0:01:56]} 23. Nh3 {[%clk 0:02:18]}  bxc3 {[%clk 0:01:46]} 24. bxc3 {[%clk 0:02:17]}  Ra3 {[%clk 0:01:46]} 25. Nf4 {[%clk 0:02:13]}  Rxc3 {[%clk 0:01:35]} 26. Ra6 {[%clk 0:01:57]}  Qg5 {[%clk 0:00:54]} 27. Qxg5 {[%clk 0:01:56]}  hxg5 {[%clk 0:00:55]} 28. Nxe6 {[%clk 0:01:57]}  Rc8 {[%clk 0:00:38]} 29. Ra7 {[%clk 0:01:56]}  Nf8 {[%clk 0:00:32]} 30. Nxg7 {[%clk 0:01:56]}  f4 {[%clk 0:00:17]} 31. Nf5 {[%clk 0:01:55]}  Rb8 {[%clk 0:00:15]} 32. exf4 {[%clk 0:01:49]}  Rc2 {[%clk 0:00:16]} 33. fxg5 {[%clk 0:01:47]}  Rbb2 {[%clk 0:00:16]} 34. Nh6+ {[%clk 0:01:47]}  Kh8 {[%clk 0:00:15]} 35. Rxf8# {[%clk 0:01:48]} 1-0


[Site "https://www.chess.com"]

[Event "Titled Tuesday Blitz August 08 Early 2023"]
[White "Zemlyanskii, Ivan"]
[Black "NovoselovRoman"]
[WhiteFideId "24249971"]
[WhiteElo "2910"]
[BlackElo "2611"]
[Result "1-0"]
[Round "3"]
[TimeControl "180+1"]
[Date "2023.08.08"]
[WhiteClock "0:00:09"]
[BlackClock "0:00:03"]
[Board "58"]

1. d4 {[%clk 0:03:00]}  d5 {[%clk 0:02:58]} 2. Bf4 {[%clk 0:03:01]}  e6 {[%clk 0:02:57]} 3. e3 {[%clk 0:03:01]}  Bd6 {[%clk 0:02:56]} 4. Nf3 {[%clk 0:03:00]}  Ne7 {[%clk 0:02:54]} 5. Bg3 {[%clk 0:02:58]}  c5 {[%clk 0:02:54]} 6. c3 {[%clk 0:02:58]}  Nbc6 {[%clk 0:02:54]} 7. Nbd2 {[%clk 0:02:58]}  Nf5 {[%clk 0:02:52]} 8. Bxd6 {[%clk 0:02:34]}  Qxd6 {[%clk 0:02:53]} 9. e4 {[%clk 0:02:33]}  Nfe7 {[%clk 0:02:35]} 10. e5 {[%clk 0:02:33]}  Qc7 {[%clk 0:02:35]} 11. Nb3 {[%clk 0:01:50]}  c4 {[%clk 0:02:19]} 12. Nbd2 {[%clk 0:01:44]}  Bd7 {[%clk 0:02:19]} 13. Be2 {[%clk 0:01:42]}  f6 {[%clk 0:02:16]} 14. exf6 {[%clk 0:01:35]}  gxf6 {[%clk 0:02:17]} 15. O-O {[%clk 0:01:35]}  Ng6 {[%clk 0:02:12]} 16. b3 {[%clk 0:01:27]}  cxb3 {[%clk 0:02:04]} 17. axb3 {[%clk 0:01:28]}  Nf4 {[%clk 0:02:02]} 18. Re1 {[%clk 0:01:22]}  e5 {[%clk 0:01:52]} 19. dxe5 {[%clk 0:01:11]}  fxe5 {[%clk 0:01:53]} 20. Bb5 {[%clk 0:01:10]}  e4 {[%clk 0:01:47]} 21. Nxe4 {[%clk 0:00:49]}  dxe4 {[%clk 0:01:33]} 22. Rxe4+ {[%clk 0:00:50]}  Ne6 {[%clk 0:01:34]} 23. Ng5 {[%clk 0:00:45]}  O-O-O {[%clk 0:01:32]} 24. Nf7 {[%clk 0:00:42]}  Nc5 {[%clk 0:01:22]} 25. Re3 {[%clk 0:00:33]}  Ne5 {[%clk 0:00:59]} 26. Nxd8 {[%clk 0:00:15]}  Bxb5 {[%clk 0:00:51]} 27. Qd5 {[%clk 0:00:15]}  Rxd8 {[%clk 0:00:26]} 28. Qxe5 {[%clk 0:00:15]}  Qxe5 {[%clk 0:00:20]} 29. Rxe5 {[%clk 0:00:16]}  Nxb3 {[%clk 0:00:20]} 30. Rae1 {[%clk 0:00:09]}  Bc6 {[%clk 0:00:15]} 31. f4 {[%clk 0:00:08]}  a5 {[%clk 0:00:15]} 32. f5 {[%clk 0:00:09]}  a4 {[%clk 0:00:14]} 33. R1e2 {[%clk 0:00:04]}  Nc1 {[%clk 0:00:11]} 34. Rc2 {[%clk 0:00:02]}  Nd3 {[%clk 0:00:08]} 35. Ra5 {[%clk 0:00:02]}  Re8 {[%clk 0:00:08]} 36. Ra8+ {[%clk 0:00:02]}  Kc7 {[%clk 0:00:08]} 37. Rxe8 {[%clk 0:00:02]}  Bxe8 {[%clk 0:00:09]} 38. g4 {[%clk 0:00:02]}  Bf7 {[%clk 0:00:08]} 39. Rd2 {[%clk 0:00:02]}  Nc5 {[%clk 0:00:06]} 40. Kf2 {[%clk 0:00:01]}  a3 {[%clk 0:00:06]} 41. Rd1 {[%clk 0:00:01]}  Nb3 {[%clk 0:00:06]} 42. Ke3 {[%clk 0:00:01]}  a2 {[%clk 0:00:06]} 43. Kf4 {[%clk 0:00:02]}  a1=Q {[%clk 0:00:05]} 44. Rxa1 {[%clk 0:00:02]}  Nxa1 {[%clk 0:00:06]} 45. Ke5 {[%clk 0:00:03]}  Nc2 {[%clk 0:00:05]} 46. Kf6 {[%clk 0:00:03]}  Bc4 {[%clk 0:00:05]} 47. Kg7 {[%clk 0:00:03]}  Ne3 {[%clk 0:00:05]} 48. h3 {[%clk 0:00:03]}  Kd7 {[%clk 0:00:04]} 49. Kxh7 {[%clk 0:00:02]}  Ke7 {[%clk 0:00:05]} 50. Kg7 {[%clk 0:00:02]}  Bf1 {[%clk 0:00:04]} 51. f6+ {[%clk 0:00:03]}  Kd6 {[%clk 0:00:02]} 52. f7 {[%clk 0:00:03]}  Bxh3 {[%clk 0:00:02]} 53. f8=Q+ {[%clk 0:00:04]}  Kc6 {[%clk 0:00:03]} 54. Qf3+ {[%clk 0:00:05]}  Nd5 {[%clk 0:00:03]} 55. Qg3 {[%clk 0:00:05]}  Kc5 {[%clk 0:00:04]} 56. Qxh3 {[%clk 0:00:06]}  b5 {[%clk 0:00:04]} 57. Qd3 {[%clk 0:00:06]}  Nc7 {[%clk 0:00:03]} 58. Qd4+ {[%clk 0:00:06]}  Kc6 {[%clk 0:00:04]} 59. Kf6 {[%clk 0:00:07]}  Kb7 {[%clk 0:00:01]} 60. Ke5 {[%clk 0:00:07]}  Kc6 {[%clk 0:00:01]} 61. Qd6+ {[%clk 0:00:07]}  Kb7 {[%clk 0:00:02]} 62. Kd4 {[%clk 0:00:07]}  Na6 {[%clk 0:00:02]} 63. g5 {[%clk 0:00:07]}  Nb8 {[%clk 0:00:02]} 64. g6 {[%clk 0:00:07]}  Nc6+ {[%clk 0:00:02]} 65. Kc5 {[%clk 0:00:08]}  Nb8 {[%clk 0:00:02]} 66. g7 {[%clk 0:00:08]}  Na6+ {[%clk 0:00:02]} 67. Kd4 {[%clk 0:00:09]}  Nb8 {[%clk 0:00:02]} 68. g8=Q {[%clk 0:00:09]}  b4 {[%clk 0:00:03]} 69. Qgxb8# {[%clk 0:00:09]} 1-0


[Site "https://www.chess.com"]

[Event "Titled Tuesday Blitz August 08 Early 2023"]
[White "Maus7"]
[Black "Molina, Roberto Junio Brito"]
[BlackFideId "2109450"]
[WhiteElo "2602"]
[BlackElo "2852"]
[Result "0-1"]
[Round "3"]
[TimeControl "180+1"]
[Date "2023.08.08"]
[WhiteClock "0:00:00"]
[BlackClock "0:00:04"]
[Board "61"]

1. e4 {[%clk 0:03:00]}  c6 {[%clk 0:02:57]} 2. d4 {[%clk 0:03:00]}  d5 {[%clk 0:02:58]} 3. e5 {[%clk 0:03:01]}  Bf5 {[%clk 0:02:48]} 4. h4 {[%clk 0:03:01]}  Qb6 {[%clk 0:02:47]} 5. a4 {[%clk 0:02:55]}  h6 {[%clk 0:02:45]} 6. a5 {[%clk 0:02:53]}  Qc7 {[%clk 0:02:44]} 7. Bd3 {[%clk 0:02:45]}  Bxd3 {[%clk 0:02:41]} 8. Qxd3 {[%clk 0:02:46]}  e6 {[%clk 0:02:41]} 9. Nf3 {[%clk 0:02:45]}  c5 {[%clk 0:02:40]} 10. Nc3 {[%clk 0:02:39]}  a6 {[%clk 0:02:36]} 11. h5 {[%clk 0:02:32]}  cxd4 {[%clk 0:02:33]} 12. Qxd4 {[%clk 0:02:20]}  Nc6 {[%clk 0:02:30]} 13. Qa4 {[%clk 0:02:21]}  Bb4 {[%clk 0:02:19]} 14. Nd4 {[%clk 0:02:09]}  Ne7 {[%clk 0:01:58]} 15. O-O {[%clk 0:01:54]}  Qxa5 {[%clk 0:01:41]} 16. Nxc6 {[%clk 0:01:32]}  Nxc6 {[%clk 0:01:34]} 17. f4 {[%clk 0:01:03]}  Qxa4 {[%clk 0:01:15]} 18. Nxa4 {[%clk 0:01:01]}  b5 {[%clk 0:01:14]} 19. Nc3 {[%clk 0:00:55]}  O-O {[%clk 0:00:53]} 20. Ne2 {[%clk 0:00:55]}  Rfc8 {[%clk 0:00:51]} 21. Be3 {[%clk 0:00:50]}  a5 {[%clk 0:00:49]} 22. c3 {[%clk 0:00:48]}  Be7 {[%clk 0:00:47]} 23. Nd4 {[%clk 0:00:44]}  Nxd4 {[%clk 0:00:44]} 24. Bxd4 {[%clk 0:00:45]}  a4 {[%clk 0:00:38]} 25. Kf2 {[%clk 0:00:39]}  f6 {[%clk 0:00:34]} 26. Ke3 {[%clk 0:00:35]}  Bc5 {[%clk 0:00:26]} 27. Bxc5 {[%clk 0:00:25]}  Rxc5 {[%clk 0:00:26]} 28. exf6 {[%clk 0:00:17]}  gxf6 {[%clk 0:00:25]} 29. Rfd1 {[%clk 0:00:16]}  Kf7 {[%clk 0:00:25]} 30. Rd4 {[%clk 0:00:16]}  Rg8 {[%clk 0:00:21]} 31. Kf3 {[%clk 0:00:17]}  e5 {[%clk 0:00:20]} 32. fxe5 {[%clk 0:00:15]}  fxe5 {[%clk 0:00:21]} 33. Rh4 {[%clk 0:00:13]}  Ke6 {[%clk 0:00:16]} 34. g3 {[%clk 0:00:13]}  Rc7 {[%clk 0:00:16]} 35. Rg1 {[%clk 0:00:07]}  Rf7+ {[%clk 0:00:16]} 36. Ke2 {[%clk 0:00:07]}  e4 {[%clk 0:00:16]} 37. Rg2 {[%clk 0:00:04]}  Ke5 {[%clk 0:00:15]} 38. Rh1 {[%clk 0:00:04]}  Rf3 {[%clk 0:00:14]} 39. g4 {[%clk 0:00:02]}  a3 {[%clk 0:00:13]} 40. bxa3 {[%clk 0:00:02]}  Rxc3 {[%clk 0:00:13]} 41. g5 {[%clk 0:00:02]}  hxg5 {[%clk 0:00:12]} 42. h6 {[%clk 0:00:02]}  Kf6 {[%clk 0:00:02]} 43. Rf2+ {[%clk 0:00:01]}  Kg6 {[%clk 0:00:02]} 44. h7 {[%clk 0:00:02]}  Rh8 {[%clk 0:00:02]} 45. Rfh2 {[%clk 0:00:02]}  Rc7 {[%clk 0:00:03]} 46. Rh6+ {[%clk 0:00:01]}  Kf5 {[%clk 0:00:03]} 47. Ke3 {[%clk 0:00:00]}  Ke5 {[%clk 0:00:04]} 0-1


[Site "https://www.chess.com"]

[Event "Titled Tuesday Blitz August 08 Early 2023"]
[White "Henriquez Villagra, Cristobal"]
[Black "Prokofiev, Valentyn"]
[WhiteFideId "3409350"]
[BlackFideId "14160161"]
[WhiteElo "2841"]
[BlackElo "2593"]
[Result "1-0"]
[Round "3"]
[TimeControl "180+1"]
[Date "2023.08.08"]
[WhiteClock "0:00:58"]
[BlackClock "0:00:02"]
[Board "62"]

1. Nf3 {[%clk 0:03:00]}  g6 {[%clk 0:02:59]} 2. g3 {[%clk 0:02:56]}  Bg7 {[%clk 0:02:59]} 3. Bg2 {[%clk 0:02:57]}  c5 {[%clk 0:03:00]} 4. O-O {[%clk 0:02:58]}  Nc6 {[%clk 0:03:00]} 5. e4 {[%clk 0:02:58]}  d6 {[%clk 0:03:00]} 6. Re1 {[%clk 0:02:58]}  Nf6 {[%clk 0:02:53]} 7. c3 {[%clk 0:02:57]}  O-O {[%clk 0:02:46]} 8. d4 {[%clk 0:02:57]}  e5 {[%clk 0:02:46]} 9. dxc5 {[%clk 0:02:41]}  dxc5 {[%clk 0:02:46]} 10. Qe2 {[%clk 0:02:42]}  Bg4 {[%clk 0:02:40]} 11. h3 {[%clk 0:02:40]}  Bxf3 {[%clk 0:02:40]} 12. Bxf3 {[%clk 0:02:41]}  Qd7 {[%clk 0:02:39]} 13. Kg2 {[%clk 0:02:40]}  Rfd8 {[%clk 0:02:39]} 14. a4 {[%clk 0:02:40]}  Na5 {[%clk 0:02:38]} 15. Be3 {[%clk 0:02:32]}  b6 {[%clk 0:02:37]} 16. Nd2 {[%clk 0:02:32]}  Qe6 {[%clk 0:02:37]} 17. Red1 {[%clk 0:02:28]}  Nb3 {[%clk 0:02:34]} 18. Nxb3 {[%clk 0:02:26]}  Qxb3 {[%clk 0:02:35]} 19. Qb5 {[%clk 0:02:27]}  Qxb5 {[%clk 0:01:52]} 20. axb5 {[%clk 0:02:28]}  Rxd1 {[%clk 0:01:51]} 21. Rxd1 {[%clk 0:02:18]}  Bf8 {[%clk 0:01:51]} 22. Kf1 {[%clk 0:01:58]}  Ne8 {[%clk 0:01:45]} 23. Bg4 {[%clk 0:01:52]}  a6 {[%clk 0:01:21]} 24. bxa6 {[%clk 0:01:50]}  Rxa6 {[%clk 0:01:00]} 25. Rd8 {[%clk 0:01:46]}  Ng7 {[%clk 0:01:00]} 26. Rb8 {[%clk 0:01:30]}  f5 {[%clk 0:00:36]} 27. Be2 {[%clk 0:01:30]}  Ra1+ {[%clk 0:00:36]} 28. Kg2 {[%clk 0:01:30]}  Ra4 {[%clk 0:00:25]} 29. b3 {[%clk 0:01:22]}  Rxe4 {[%clk 0:00:24]} 30. Bc4+ {[%clk 0:01:22]}  Rxc4 {[%clk 0:00:24]} 31. bxc4 {[%clk 0:01:23]}  Kf7 {[%clk 0:00:24]} 32. Rxb6 {[%clk 0:01:23]}  Ne6 {[%clk 0:00:24]} 33. Rb7+ {[%clk 0:01:18]}  Be7 {[%clk 0:00:24]} 34. Kf1 {[%clk 0:01:15]}  g5 {[%clk 0:00:22]} 35. g4 {[%clk 0:01:15]}  f4 {[%clk 0:00:21]} 36. Bc1 {[%clk 0:01:15]}  e4 {[%clk 0:00:15]} 37. Rd7 {[%clk 0:01:15]}  h6 {[%clk 0:00:13]} 38. Ba3 {[%clk 0:01:14]}  Kf6 {[%clk 0:00:13]} 39. Rd5 {[%clk 0:01:15]}  Bf8 {[%clk 0:00:11]} 40. Rf5+ {[%clk 0:01:15]}  Kg6 {[%clk 0:00:09]} 41. Re5 {[%clk 0:01:15]}  Kf6 {[%clk 0:00:10]} 42. Rxe4 {[%clk 0:01:16]}  Bd6 {[%clk 0:00:10]} 43. Ke2 {[%clk 0:01:07]}  Be5 {[%clk 0:00:11]} 44. Kd3 {[%clk 0:01:03]}  Bd6 {[%clk 0:00:10]} 45. f3 {[%clk 0:01:03]}  Be5 {[%clk 0:00:10]} 46. Re1 {[%clk 0:01:03]}  Bd6 {[%clk 0:00:11]} 47. Rb1 {[%clk 0:01:03]}  Bc7 {[%clk 0:00:09]} 48. Rb7 {[%clk 0:01:03]}  Be5 {[%clk 0:00:06]} 49. Rb6 {[%clk 0:01:01]}  Kf7 {[%clk 0:00:06]} 50. Rc6 {[%clk 0:01:00]}  Kf6 {[%clk 0:00:02]} 51. Bxc5 {[%clk 0:01:00]}  Kf7 {[%clk 0:00:02]} 52. Bd4 {[%clk 0:01:00]}  Bb8 {[%clk 0:00:03]} 53. Ke4 {[%clk 0:00:58]}  Kg6 {[%clk 0:00:02]} 1-0


[Site "https://www.chess.com"]